[Event "Kuwait Championship Stage-I 2024"]
[Site "Qadsiya"]
[Date "2024.01.30"]
[Round "7.7"]
[White "Alruwayeh, Talal"]
[Black "Alghanim, Faisal"]
[Result "1-0"]
[ECO "B10"]
[WhiteElo "1407"]
[BlackElo "1280"]
[Annotator "NA RC"]
[PlyCount "141"]
[EventDate "2024.01.22"]
[EventType "swiss"]
[EventCountry "KUW"]
[SourceTitle "playchess.com"]
[Source "ChessBase"]
[SourceQuality "1"]
[TimeControl "5400+30"]

1. e4 {[%emt 0:00:48]} c6 {[%emt 0:00:04]} 2. c4 {[%emt 0:00:11]} d5 {[%emt 0:00:04]} 3. cxd5 {[%emt 0:01:20]} cxd5 {[%emt 0:00:06]} 4. exd5 {[%emt 0:00:17]} Nf6 {[%emt 0:03:44]} 5. Nc3 {[%emt 0:01:27]} Nxd5 {[%emt 0:01:07]} 6. Qa4+ {[%emt 0:02:33]} Bd7 {[%emt 0:04:00]} 7. Bb5 {[%emt 0:00:13]} Nxc3 {[%emt 0:00:55]} 8. Bxd7+ {[%emt 0:00:06]} Qxd7 {[%emt 0:00:30]} 9. Qxd7+ {[%emt 0:00:05]} Nxd7 {[%emt 0:00:09]} 10. dxc3 {[%emt 0:00:06]} Ne5 {[%emt 0:01:45]} 11. Ke2 {[%emt 0:00:08]} Rd8 {[%emt 0:03:05]} 12. Be3 {[%emt 0:01:51]} a6 {[%emt 0:04:28]} 13. Nf3 {[%emt 0:00:43]} Nc4 {[%emt 0:03:01]} 14. Bd4 {[%emt 0:00:21]} b5 {[%emt 0:09:23]} 15. b3 {[%emt 0:00:20]} Nd6 {[%emt 0:01:26]} 16. Rhd1 {[%emt 0:01:36]} e6 {[%emt 0:08:15]} 17. Bb6 {[%emt 0:01:04]} Rc8 {[%emt 0:04:11]} 18. Rd3 {[%emt 0:02:40]} Be7 {[%emt 0:07:05]} 19. Rad1 {[%emt 0:00:41]} Rc6 {[%emt 0:07:46]} 20. Ba5 {[%emt 0:01:01]} Nb7 {[%emt 0:04:31]} 21. Bb4 {[%emt 0:03:27]} Bxb4 {[%emt 0:01:17]} 22. cxb4 {[%emt 0:00:03]} Rc2+ {[%emt 0:07:26]} 23. Ke1 {[%emt 0:01:47]} Rc7 {[%emt 0:04:25]} 24. Ne5 {[%emt 0:01:38]} O-O {[%emt 0:02:17]} 25. Rd7 {[%emt 0:01:19]} Rxd7 {[%emt 0:06:04]} 26. Rxd7 {[%emt 0:00:05]} Nd8 {[%emt 0:00:21]} 27. Ra7 {[%emt 0:00:26]} f6 {[%emt 0:00:28]} 28. Nd3 {[%emt 0:00:06]} Nc6 {[%emt 0:01:41]} 29. Rxa6 {[%emt 1:18:38]} Nd4 {[%emt 0:15:26]} 30. Rd6 {[%emt 0:00:00]} e5 {[%emt 0:00:00]} 31. Kd2 {[%emt 0:00:00]} Ra8 {[%emt 0:00:00]} 32. Nc1 {[%emt 0:00:00]} Rc8 {[%emt 0:00:00]} 33. a4 {[%emt 0:00:00]} Kf8 {[%emt 0:00:00]} 34. a5 {[%emt 0:00:00]} Ke7 {[%emt 0:00:14]} 35. Rd5 {[%emt 0:00:00]} Ke6 {[%emt 0:01:34]} 36. Rc5 {[%emt 0:00:00]} Rxc5 {[%emt 0:00:56]} 37. bxc5 {[%emt 0:00:00]} Kd5 {[%emt 0:00:27]} 38. b4 {[%emt 0:00:00]} Kc6 {[%emt 0:00:36]} 39. Kc3 {[%emt 0:00:00]} h5 {[%emt 0:00:34]} 40. f3 {[%emt 0:00:00]} Ne6 {[%emt 0:00:17]} 41. Ne2 {[%emt 0:00:00]} Nc7 {[%emt 0:00:09]} 42. Ng3 {[%emt 0:00:00]} g6 {[%emt 0:00:26]} 43. Ne4 {[%emt 0:00:00]} Nd5+ {[%emt 0:00:58]} 44. Kb3 {[%emt 0:00:00]} Kc7 {[%emt 0:01:19]} 45. h4 {[%emt 0:00:00]} Kb7 {[%emt 0:00:00]} 46. Nc3 {[%emt 0:00:00]} Nc7 {[%emt 0:00:11]} 47. Ne4 {[%emt 0:00:00]} f5 {[%emt 0:00:30]} 48. Nc3 {[%emt 0:00:00]} Kc6 {[%emt 0:00:28]} 49. Kc2 {[%emt 0:00:00]} Na6 {[%emt 0:00:37]} 50. Na2 {[%emt 0:00:00]} Kb7 {[%emt 0:00:12]} 51. Kd3 {[%emt 0:00:00]} Nc7 {[%emt 0:00:24]} 52. Nc3 {[%emt 0:00:00]} Na6 {[%emt 0:00:52]} 53. Nxb5 {[%emt 0:00:00]} Nxb4+ {[%emt 0:00:13]} 54. Kc4 {[%emt 0:00:00]} Nc6 {[%emt 0:00:34]} 55. Nd6+ {[%emt 0:00:00]} Ka6 {[%emt 0:00:55]} 56. Kd5 {[%emt 0:00:00]} Ne7+ {[%emt 0:00:29]} 57. Kxe5 {[%emt 0:00:00]} Kxa5 {[%emt 0:00:27]} 58. Kf6 {[%emt 0:00:00]} Nd5+ {[%emt 0:00:15]} 59. Kxg6 {[%emt 0:00:00]} Nf4+ {[%emt 0:00:28]} 60. Kxf5 {[%emt 0:00:00]} Nxg2 {[%emt 0:00:21]} 61. Kg5 {[%emt 0:00:00]} Ne1 {[%emt 0:00:55]} 62. f4 {[%emt 0:00:00]} Nd3 {[%emt 0:00:03]} 63. Ne4 {[%emt 0:00:00]} Kb5 {[%emt 0:00:34]} 64. f5 {[%emt 0:00:00]} Ne5 {[%emt 0:00:07]} 65. Kxh5 {[%emt 0:00:00]} Kc6 {[%emt 0:00:12]} 66. Kg5 {[%emt 0:00:00]} Nf3+ {[%emt 0:00:20]} 67. Kg4 {[%emt 0:00:00]} Ne5+ {[%emt 0:00:06]} 68. Kf4 {[%emt 0:00:00]} Nf7 {[%emt 0:00:13]} 69. h5 {[%emt 0:00:00]} Kd5 {[%emt 0:00:12]} 70. f6 {[%emt 0:00:00]} Ke6 {[%emt 0:00:29]} 71. Ng5+ {[%emt 0:00:00]} 1-0

[Event "Kuwait Championship Stage-I 2024"]
[Site "Qadsiya"]
[Date "2024.01.30"]
[Round "7.9"]
[White "Alsayer, Bader"]
[Black "Qabazard, Mohamed"]
[Result "1-0"]
[ECO "B43"]
[WhiteElo "1260"]
[BlackElo "1533"]
[Annotator "NA RC"]
[PlyCount "69"]
[EventDate "2024.01.22"]
[EventType "swiss"]
[EventCountry "KUW"]
[SourceTitle "playchess.com"]
[Source "ChessBase"]
[SourceQuality "1"]
[TimeControl "5400+30"]

1. e4 {[%emt 0:06:07]} c5 {[%emt 0:00:05]} 2. Nf3 {[%emt 0:00:07]} e6 {[%emt 0:00:14]} 3. d4 {[%emt 0:00:20]} cxd4 {[%emt 0:00:08]} 4. Nxd4 {[%emt 0:00:05]} a6 {[%emt 0:00:08]} 5. Nc3 {[%emt 0:00:08]} Qc7 {[%emt 0:00:20]} 6. Be3 {[%emt 0:01:44]} Nf6 {[%emt 0:00:18]} 7. f3 {[%emt 0:00:22]} Bb4 {[%emt 0:01:28]} 8. Qd2 {[%emt 0:00:32]} O-O {[%emt 0:00:07]} 9. g4 {[%emt 0:02:24]} d5 {[%emt 0:01:05]} 10. g5 {[%emt 0:00:34]} Nh5 {[%emt 0:01:19]} 11. Bh3 {[%emt 0:00:33]} e5 {[%emt 0:04:52]} 12. Nf5 {[%emt 0:02:28]} Bxf5 {[%emt 0:02:18]} 13. Bxf5 {[%emt 0:00:14]} d4 {[%emt 0:00:23]} 14. Bxd4 {[%emt 0:00:06]} exd4 {[%emt 0:00:18]} 15. Qxd4 {[%emt 0:00:02]} Bxc3+ {[%emt 0:00:18]} 16. bxc3 {[%emt 0:01:01]} Nc6 {[%emt 0:00:15]} 17. Qe3 {[%emt 0:00:58]} Nf4 {[%emt 0:01:04]} 18. Kf2 {[%emt 0:02:18]} Nh5 {[%emt 0:06:44]} 19. Bg4 {[%emt 0:00:42]} Nf4 {[%emt 0:01:03]} 20. h4 {[%emt 0:03:02]} Qe5 {[%emt 0:04:39]} 21. Rag1 {[%emt 0:03:54]} Rfe8 {[%emt 0:02:33]} 22. h5 {[%emt 0:01:31]} Rad8 {[%emt 0:01:22]} 23. Bf5 {[%emt 0:01:09]} Na5 {[%emt 0:03:14]} 24. g6 {[%emt 0:00:21]} fxg6 {[%emt 0:02:47]} 25. hxg6 {[%emt 0:00:39]} h6 {[%emt 0:00:46]} 26. Rg4 {[%emt 0:00:17]} Nd5 {[%emt 0:01:10]} 27. Qc1 {[%emt 0:02:50]} Ne7 {[%emt 0:02:10]} 28. Rxh6 {[%emt 0:03:52]} gxh6 {[%emt 0:01:39]} 29. Qxh6 {[%emt 0:00:03]} Qg7 {[%emt 0:00:22]} 30. Be6+ {[%emt 0:00:06]} Kf8 {[%emt 0:02:11]} 31. Rf4+ {[%emt 0:00:17]} Nf5 {[%emt 0:00:18]} 32. Rxf5+ {[%emt 0:00:11]} Ke7 {[%emt 0:00:12]} 33. Qxg7+ {[%emt 0:00:08]} Kxe6 {[%emt 0:00:11]} 34. Qe5+ {[%emt 0:01:25]} Kd7 {[%emt 0:00:03]} 35. Rf7+ {[%emt 0:00:20]} 1-0

[Event "Kuwait Championship Stage-I 2024"]
[Site "Qadsiya"]
[Date "2024.01.30"]
[Round "7.10"]
[White "Alsuwailem, Othman"]
[Black "Khalaf, Ali"]
[Result "0-1"]
[ECO "A22"]
[WhiteElo "1366"]
[BlackElo "1426"]
[Annotator "NA RC"]
[PlyCount "62"]
[EventDate "2024.01.22"]
[EventType "swiss"]
[EventCountry "KUW"]
[SourceTitle "playchess.com"]
[Source "ChessBase"]
[SourceQuality "1"]
[TimeControl "5400+30"]

1. c4 {[%emt 0:00:02]} e5 {[%emt 0:15:59]} 2. Nc3 {[%emt 0:00:05]} Nf6 {[%emt 0:01:35]} 3. d3 {[%emt 0:01:05]} Bb4 {[%emt 0:05:27]} 4. g3 {[%emt 0:01:43]} O-O {[%emt 0:02:01]} 5. Bg2 {[%emt 0:00:18]} c6 {[%emt 0:01:07]} 6. Qb3 {[%emt 0:00:54]} Bc5 {[%emt 0:09:50]} 7. Bg5 {[%emt 0:02:41]} Bxf2+ {[%emt 0:00:38]} 8. Kd2 {[%emt 0:03:09]} Bc5 {[%emt 0:03:23]} 9. Rf1 {[%emt 0:08:46]} Be7 {[%emt 0:01:33]} 10. h4 {[%emt 0:13:26]} Qb6 {[%emt 0:05:11]} 11. Qxb6 {[%emt 0:07:47]} axb6 {[%emt 0:00:24]} 12. a3 {[%emt 0:03:06]} h6 {[%emt 0:03:35]} 13. Bxf6 {[%emt 0:04:17]} Bxf6 {[%emt 0:00:28]} 14. g4 {[%emt 0:00:30]} d6 {[%emt 0:05:49]} 15. g5 {[%emt 0:14:22]} hxg5 {[%emt 0:08:01]} 16. Ne4 {[%emt 0:00:06]} Be7 {[%emt 0:03:52]} 17. hxg5 {[%emt 0:00:29]} f5 {[%emt 0:11:49]} 18. gxf6 {[%emt 0:01:13]} gxf6 {[%emt 0:00:03]} 19. Rf3 {[%emt 0:14:31]} Rf7 {[%emt 0:03:03]} 20. Nh3 {[%emt 0:05:34]} d5 {[%emt 0:08:09]} 21. cxd5 {[%emt 0:00:52]} cxd5 {[%emt 0:00:01]} 22. Nc3 {[%emt 0:00:02]} Be6 {[%emt 0:01:28]} 23. Nb5 {[%emt 0:01:46]} Na6 {[%emt 0:00:41]} 24. Rc1 {[%emt 0:02:31]} Rg7 {[%emt 0:02:05]} 25. Bh1 {[%emt 0:00:41]} Rc8 {[%emt 0:02:10]} 26. Rg1 {[%emt 0:00:04]} Rxg1 {[%emt 0:01:15]} 27. Nxg1 {[%emt 0:00:01]} Nc5 {[%emt 0:00:20]} 28. d4 {[%emt 0:03:15]} Ne4+ {[%emt 0:00:35]} 29. Kd3 {[%emt 0:01:00]} Rc1 {[%emt 0:01:12]} 30. Bg2 {[%emt 0:03:04]} Rxg1 {[%emt 0:00:29]} 31. Bh3 {[%emt 0:00:09]} Bxh3 {[%emt 0:00:11]} 0-1

[Event "Kuwait Championship Stage-I 2024"]
[Site "Qadsiya"]
[Date "2024.01.30"]
[Round "7.12"]
[White "Husain, Sulaiman A.M."]
[Black "Alruwaiyeh, Musa"]
[Result "1/2-1/2"]
[ECO "B07"]
[WhiteElo "1636"]
[BlackElo "1505"]
[Annotator "NA RC"]
[PlyCount "83"]
[EventDate "2024.01.22"]
[EventType "swiss"]
[EventCountry "KUW"]
[SourceTitle "playchess.com"]
[Source "ChessBase"]
[SourceQuality "1"]
[TimeControl "5400+30"]

1. e4 {[%emt 0:00:13]} d6 {[%emt 0:00:28]} 2. d4 {[%emt 0:00:06]} Nf6 {[%emt 0:00:31]} 3. Nc3 {[%emt 0:00:27]} g6 {[%emt 0:00:09]} 4. f3 {[%emt 0:01:11]} Bg7 {[%emt 1:31:22]} 5. Be3 c6 {[%emt 0:00:00]} 6. Qd2 {[%emt 0:00:31]} e6 {[%emt 0:00:00]} 7. O-O-O {[%emt 0:01:38]} b5 {[%emt 0:00:00]} 8. g4 {[%emt 0:00:29]} Qa5 {[%emt 0:00:00]} 9. Kb1 {[%emt 0:04:10]} Na6 {[%emt 0:00:00]} 10. Nxb5 {[%emt 0:03:04]} Qxd2 {[%emt 0:00:00]} 11. Nxd6+ {[%emt 0:00:36]} Kd7 {[%emt 0:00:00]} 12. Rxd2 {[%emt 0:00:03]} Kxd6 {[%emt 0:04:00]} 13. e5+ {[%emt 1:24:32]} Ke7 {[%emt 0:00:00]} 14. exf6+ {[%emt 0:00:00]} Bxf6 {[%emt 0:00:00]} 15. g5 {[%emt 0:00:00]} Bg7 {[%emt 0:00:00]} 16. Bg2 {[%emt 0:01:30]} Rb8 {[%emt 0:00:00]} 17. c3 {[%emt 0:00:00]} Rd8 {[%emt 0:00:00]} 18. Ne2 {[%emt 0:00:00]} c5 {[%emt 0:00:00]} 19. Rhd1 {[%emt 0:00:00]} c4 {[%emt 0:00:00]} 20. d5 {[%emt 0:00:00]} exd5 {[%emt 0:00:00]} 21. Rxd5 {[%emt 0:00:00]} Rxd5 {[%emt 0:00:00]} 22. Rxd5 {[%emt 0:00:00]} Bb7 {[%emt 0:00:00]} 23. Ra5 {[%emt 0:00:00]} Nc7 {[%emt 0:00:00]} 24. Rxa7 {[%emt 0:00:00]} Nb5 {[%emt 0:00:00]} 25. Bf4 {[%emt 0:00:00]} Nxa7 {[%emt 0:00:00]} 26. Bxb8 {[%emt 0:00:00]} Nc6 {[%emt 0:00:00]} 27. f4 {[%emt 0:00:00]} Nxb8 {[%emt 0:00:00]} 28. Bxb7 {[%emt 0:00:00]} Kd6 {[%emt 0:00:00]} 29. b3 {[%emt 0:00:00]} cxb3 {[%emt 0:00:00]} 30. axb3 {[%emt 0:00:00]} h6 {[%emt 0:00:00]} 31. h4 {[%emt 0:00:00]} f6 {[%emt 0:00:00]} 32. c4 {[%emt 0:00:00]} fxg5 {[%emt 0:00:00]} 33. hxg5 {[%emt 0:00:00]} hxg5 {[%emt 0:00:00]} 34. fxg5 {[%emt 0:00:00]} Bf8 {[%emt 0:00:00]} 35. Be4 {[%emt 0:00:00]} Be7 {[%emt 0:00:00]} 36. Bxg6 {[%emt 0:00:00]} Bxg5 {[%emt 0:00:00]} 37. Kc2 {[%emt 0:00:00]} Nc6 {[%emt 0:00:00]} 38. Kc3 {[%emt 0:00:00]} Kc5 {[%emt 0:00:00]} 39. Nd4 {[%emt 0:00:00]} Bf6 {[%emt 0:00:00]} 40. Be8 {[%emt 0:00:00]} Bxd4+ {[%emt 0:00:00]} 41. Kd3 {[%emt 0:00:00]} Nb4+ {[%emt 0:00:00]} 42. Ke4 {[%emt 0:00:00]} 1/2-1/2

[Event "Kuwait Championship Stage-I 2024"]
[Site "Qadsiya"]
[Date "2024.01.31"]
[Round "8.1"]
[White "Al-Hajiri, Bader"]
[Black "Alhejab, Meshal"]
[Result "1-0"]
[ECO "E53"]
[WhiteElo "1890"]
[BlackElo "1787"]
[Annotator "NA RC"]
[PlyCount "115"]
[EventDate "2024.01.22"]
[EventType "swiss"]
[EventCountry "KUW"]
[SourceTitle "playchess.com"]
[Source "ChessBase"]
[SourceQuality "1"]
[TimeControl "5400+30"]

1. d4 {[%emt 0:00:30]} Nf6 {[%emt 0:09:58]} 2. c4 {[%emt 0:00:20]} e6 {[%emt 0:00:08]} 3. Nc3 {[%emt 0:00:14]} Bb4 {[%emt 0:00:10]} 4. e3 {[%emt 0:00:34]} O-O {[%emt 0:00:33]} 5. Bd3 {[%emt 0:00:33]} d5 {[%emt 0:00:21]} 6. Nf3 {[%emt 0:00:19]} c5 {[%emt 0:00:23]} 7. a3 {[%emt 0:00:55]} Bxc3+ 8. bxc3 {[%emt 0:00:36]} dxc4 9. Bxc4 {[%emt 0:01:43]} Qc7 {[%emt 0:10:04]} 10. Qd3 {[%emt 0:11:48]} Rd8 {[%emt 0:26:25]} 11. O-O {[%emt 0:02:33]} b6 {[%emt 0:00:36]} 12. e4 {[%emt 0:03:48]} h6 {[%emt 0:09:47]} 13. e5 {[%emt 0:10:07]} Nd5 {[%emt 0:04:08]} 14. Nd2 {[%emt 0:00:43]} Nc6 {[%emt 0:06:53]} 15. Ne4 {[%emt 0:01:47]} cxd4 {[%emt 0:05:41]} 16. cxd4 {[%emt 0:04:53]} Nde7 {[%emt 0:03:56]} 17. Nd6 {[%emt 0:06:40]} Nf5 {[%emt 0:03:40]} 18. Bf4 {[%emt 0:20:02]} g5 {[%emt 0:03:30]} 19. Bg3 {[%emt 0:09:37]} Ncxd4 {[%emt 0:00:27]} 20. h4 {[%emt 0:02:20]} Nxg3 {[%emt 0:04:21]} 21. fxg3 {[%emt 0:00:32]} Nf5 {[%emt 0:00:37]} 22. Rxf5 {[%emt 0:07:30]} exf5 {[%emt 0:01:25]} 23. hxg5 {[%emt 0:01:04]} Qc5+ {[%emt 0:02:24]} 24. Kh2 {[%emt 0:00:12]} hxg5 {[%emt 0:02:30]} 25. Bxf7+ {[%emt 0:03:50]} Kg7 {[%emt 0:00:52]} 26. Ne8+ {[%emt 0:00:07]} Rxe8 {[%emt 0:02:14]} 27. Bxe8 {[%emt 0:00:02]} Qxe5 {[%emt 0:01:46]} 28. Bc6 {[%emt 0:05:33]} Qxa1 {[%emt 0:00:17]} 29. Bxa8 {[%emt 0:00:02]} Qe5 {[%emt 0:00:54]} 30. Qd8 {[%emt 0:00:30]} Qe6 {[%emt 0:00:33]} 31. Qxg5+ {[%emt 0:00:11]} Kh7 {[%emt 0:00:30]} 32. Qd8 {[%emt 0:01:55]} Bd7 {[%emt 0:00:23]} 33. Qc7 {[%emt 0:00:30]} a5 {[%emt 0:00:15]} 34. Bf3 {[%emt 0:00:38]} Kg6 {[%emt 0:00:30]} 35. Qd8 {[%emt 0:00:20]} a4 {[%emt 0:00:57]} 36. Qh8 {[%emt 0:01:04]} Kf7 {[%emt 0:00:28]} 37. Qh4 {[%emt 0:01:21]} Qf6 {[%emt 0:00:30]} 38. Bh5+ {[%emt 0:01:05]} Kg7 {[%emt 0:00:32]} 39. Qc4 {[%emt 0:00:29]} b5 {[%emt 0:00:31]} 40. Qc7 {[%emt 0:00:14]} Qe6 {[%emt 0:00:45]} 41. Qc5 {[%emt 0:00:48]} Kf6 {[%emt 0:00:32]} 42. Bf3 {[%emt 0:00:23]} Qf7 {[%emt 0:00:32]} 43. Be2 {[%emt 0:00:45]} Qe8 {[%emt 0:00:23]} 44. Bd3 {[%emt 0:00:26]} Kg7 {[%emt 0:00:36]} 45. Qd4+ {[%emt 0:00:49]} Kf7 {[%emt 0:00:26]} 46. Qd5+ {[%emt 0:00:29]} Qe6 {[%emt 0:00:08]} 47. Qc5 {[%emt 0:00:38]} Qh6+ {[%emt 0:00:25]} 48. Kg1 {[%emt 0:00:06]} Qc6 {[%emt 0:00:13]} 49. Qe3 {[%emt 0:01:23]} Qd5 {[%emt 0:00:10]} 50. Be2 {[%emt 0:00:22]} Qe4 {[%emt 0:00:43]} 51. Qd2 {[%emt 0:00:26]} Be6 {[%emt 0:01:04]} 52. Bxb5 {[%emt 0:00:46]} Bd5 {[%emt 0:00:33]} 53. Bxa4 {[%emt 0:00:43]} Ke6 {[%emt 0:00:44]} 54. Bc2 {[%emt 0:00:21]} Qg4 {[%emt 0:01:07]} 55. Qe3+ {[%emt 0:00:23]} Kf6 {[%emt 0:00:00]} 56. Qf4 {[%emt 0:00:33]} Qg6 {[%emt 0:00:28]} 57. Qd6+ {[%emt 0:00:19]} Be6 {[%emt 0:00:06]} 58. Bb3 {[%emt 0:00:06]} 1-0

[Event "Kuwait Championship Stage-I 2024"]
[Site "Qadsiya"]
[Date "2024.01.31"]
[Round "8.2"]
[White "Al Ibrahim, Abdulrahman"]
[Black "Alsaqer, Meshal"]
[Result "1-0"]
[ECO "C02"]
[WhiteElo "1854"]
[BlackElo "1753"]
[Annotator "NA COMBH"]
[PlyCount "57"]
[EventDate "2024.01.22"]
[EventType "swiss"]
[EventCountry "KUW"]
[SourceTitle "playchess.com"]
[Source "ChessBase"]
[SourceQuality "1"]
[TimeControl "5400+30"]

1. e4 {[%emt 0:00:05]} e6 {[%emt 0:00:05]} 2. d4 {[%emt 0:00:06]} d5 {[%emt 0:00:16]} 3. e5 {[%emt 0:00:08]} c5 {[%emt 0:00:15]} 4. c3 {[%emt 0:00:05]} Qb6 {[%emt 0:00:27]} 5. Nf3 {[%emt 0:00:14]} Bd7 {[%emt 0:00:23]} 6. Be2 {[%emt 0:00:34]} cxd4 {[%emt 0:00:39]} 7. cxd4 {[%emt 0:04:06]} Bb5 {[%emt 0:00:38]} 8. O-O {[%emt 0:08:20]} Bxe2 {[%emt 0:00:58]} 9. Qxe2 {[%emt 0:00:04]} Nc6 {[%emt 0:00:15]} 10. Nc3 {[%emt 0:04:20]} Nge7 {[%emt 0:00:47]} 11. Na4 {[%emt 0:03:32]} Qc7 {[%emt 0:05:27]} 12. b3 {[%emt 0:03:40]} Nf5 {[%emt 0:01:42]} 13. Bb2 {[%emt 0:00:44]} Be7 {[%emt 0:02:16]} 14. Rac1 {[%emt 0:01:43]} O-O {[%emt 0:03:33]} 15. g4 {[%emt 0:15:46]} Nh4 {[%emt 0:02:53]} 16. Nxh4 {[%emt 0:06:02]} Bxh4 {[%emt 0:00:21]} 17. f4 {[%emt 0:01:10]} Be7 {[%emt 0:02:32]} 18. Nc5 {[%emt 0:08:52]} b6 {[%emt 0:09:12]} 19. Nd3 {[%emt 0:01:52]} Qd7 {[%emt 0:02:31]} 20. f5 {[%emt 0:02:26]} Bg5 {[%emt 0:05:40]} 21. Nf4 {[%emt 0:03:42]} Rac8 {[%emt 0:08:47]} 22. f6 {[%emt 0:03:48]} g6 {[%emt 0:11:55]} 23. Nh3 {[%emt 0:12:49]} Bxc1 {[%emt 0:02:14]} 24. Bxc1 {[%emt 0:01:03]} Rfd8 {[%emt 0:14:18]} 25. Ba3 {[%emt 0:02:32]} h6 {[%emt 0:01:50]} 26. Qe3 {[%emt 0:00:15]} Kh7 {[%emt 0:00:52]} 27. Bc1 {[%emt 0:00:17]} g5 {[%emt 0:01:55]} 28. Nxg5+ {[%emt 0:00:12]} Kg8 {[%emt 0:02:25]} 29. Nh7 {[%emt 0:00:14]} 1-0

[Event "Kuwait Championship Stage-I 2024"]
[Site "Qadsiya"]
[Date "2024.01.31"]
[Round "8.3"]
[White "Hussain, Hashem"]
[Black "Hashem, Khaled"]
[Result "1-0"]
[ECO "C60"]
[WhiteElo "1642"]
[BlackElo "1868"]
[Annotator "NA RC"]
[PlyCount "75"]
[EventDate "2024.01.22"]
[EventType "swiss"]
[EventCountry "KUW"]
[SourceTitle "playchess.com"]
[Source "ChessBase"]
[SourceQuality "1"]
[TimeControl "5400+30"]

1. e4 {[%emt 0:00:03]} e5 {[%emt 0:03:45]} 2. Nf3 {[%emt 0:00:48]} Nc6 {[%emt 0:00:10]} 3. Bb5 {[%emt 0:00:07]} Nge7 {[%emt 0:01:18]} 4. O-O {[%emt 0:01:12]} g6 {[%emt 0:00:03]} 5. c3 {[%emt 0:07:55]} Bg7 {[%emt 0:00:42]} 6. d4 {[%emt 0:02:23]} exd4 {[%emt 0:11:34]} 7. cxd4 {[%emt 0:00:45]} O-O {[%emt 0:01:12]} 8. d5 {[%emt 0:04:28]} Nb8 {[%emt 0:00:10]} 9. d6 {[%emt 0:02:26]} cxd6 {[%emt 0:02:42]} 10. Qxd6 {[%emt 0:00:15]} a6 {[%emt 0:02:00]} 11. Bc4 {[%emt 0:04:46]} b5 {[%emt 0:02:50]} 12. Bb3 {[%emt 0:04:09]} h6 {[%emt 0:04:44]} 13. Ne5 {[%emt 0:03:33]} Bxe5 {[%emt 0:07:56]} 14. Qxe5 {[%emt 0:01:06]} Kh7 {[%emt 0:00:25]} 15. Nc3 {[%emt 0:05:39]} Bb7 {[%emt 0:02:51]} 16. h4 {[%emt 0:09:06]} Nbc6 {[%emt 0:00:28]} 17. Qf4 {[%emt 0:00:16]} Ng8 {[%emt 0:00:26]} 18. Be3 {[%emt 0:02:37]} Qe7 {[%emt 0:12:45]} 19. Rad1 {[%emt 0:06:24]} Ne5 {[%emt 0:03:52]} 20. Nd5 {[%emt 0:02:14]} Bxd5 {[%emt 0:00:55]} 21. Rxd5 {[%emt 0:03:12]} d6 {[%emt 0:01:39]} 22. Rfd1 {[%emt 0:02:40]} Rad8 {[%emt 0:01:26]} 23. Bd2 {[%emt 0:05:40]} Qf6 {[%emt 0:04:08]} 24. Be3 {[%emt 0:06:20]} Qe7 {[%emt 0:03:07]} 25. a4 {[%emt 0:04:07]} bxa4 {[%emt 0:06:20]} 26. Bxa4 {[%emt 0:02:38]} f5 {[%emt 0:00:06]} 27. Bb6 {[%emt 0:03:56]} Nf6 {[%emt 0:01:28]} 28. Bxd8 {[%emt 0:01:15]} Rxd8 {[%emt 0:00:01]} 29. Ra5 {[%emt 0:04:14]} Nxe4 {[%emt 0:00:07]} 30. Rxa6 {[%emt 0:00:57]} Nc5 {[%emt 0:13:19]} 31. Ra5 {[%emt 0:01:41]} Rb8 {[%emt 0:01:28]} 32. Qd4 {[%emt 0:00:55]} Ned3 {[%emt 0:04:00]} 33. Bc2 {[%emt 0:01:50]} Rb4 {[%emt 0:04:00]} 34. Qc3 {[%emt 0:01:08]} Qb7 {[%emt 0:04:20]} 35. Bxd3 {[%emt 0:01:05]} Rb3 {[%emt 0:00:12]} 36. Qd4 {[%emt 0:00:49]} Qb6 {[%emt 0:00:25]} 37. Ra8 {[%emt 0:00:29]} Rxb2 {[%emt 0:00:44]} 38. Qh8# {[%emt 0:06:22]} 1-0

[Event "Kuwait Championship Stage-I 2024"]
[Site "Qadsiya"]
[Date "2024.01.31"]
[Round "8.4"]
[White "Aldaihani, Turki"]
[Black "Alruwayeh, Talal"]
[Result "1-0"]
[ECO "B12"]
[WhiteElo "1475"]
[BlackElo "1407"]
[Annotator "NA RC"]
[PlyCount "71"]
[EventDate "2024.01.22"]
[EventType "swiss"]
[EventCountry "KUW"]
[SourceTitle "playchess.com"]
[Source "ChessBase"]
[SourceQuality "1"]
[TimeControl "5400+30"]

1. e4 {[%emt 0:16:00]} c6 {[%emt 0:00:20]} 2. d4 {[%emt 0:00:07]} d6 {[%emt 0:00:26]} 3. Nc3 {[%emt 0:00:06]} a6 {[%emt 0:00:19]} 4. a4 {[%emt 0:00:07]} Nd7 {[%emt 0:00:30]} 5. f4 {[%emt 0:00:08]} e5 {[%emt 0:01:37]} 6. Nf3 {[%emt 0:00:27]} Be7 {[%emt 0:02:03]} 7. fxe5 {[%emt 0:00:23]} dxe5 {[%emt 0:00:15]} 8. dxe5 {[%emt 0:00:33]} Nf8 {[%emt 0:00:37]} 9. Bd3 {[%emt 0:00:22]} Be6 {[%emt 0:00:44]} 10. Be3 {[%emt 0:00:20]} Ng6 {[%emt 0:00:18]} 11. O-O {[%emt 0:00:15]} Qc7 {[%emt 0:00:09]} 12. Bd4 {[%emt 0:02:43]} Rd8 13. a5 {[%emt 0:01:28]} c5 {[%emt 0:01:17]} 14. Bf2 {[%emt 0:00:34]} Nxe5 {[%emt 0:00:50]} 15. Bg3 {[%emt 0:00:40]} f6 {[%emt 0:01:54]} 16. Nxe5 {[%emt 0:02:03]} fxe5 {[%emt 0:00:04]} 17. Qh5+ {[%emt 0:00:16]} g6 {[%emt 0:00:53]} 18. Qxe5 {[%emt 0:00:43]} Qd7 {[%emt 0:03:24]} 19. Qxh8 {[%emt 0:00:32]} Bf6 {[%emt 0:00:10]} 20. Rxf6 {[%emt 0:00:03]} Qd4+ {[%emt 0:00:02]} 21. Bf2 {[%emt 0:01:23]} Qxf6 {[%emt 0:00:28]} 22. Qxf6 {[%emt 0:00:03]} Nxf6 {[%emt 0:00:04]} 23. Bh4 {[%emt 0:00:03]} Nd7 {[%emt 0:04:45]} 24. Bxd8 {[%emt 0:00:14]} Kxd8 {[%emt 0:00:03]} 25. Nd5 {[%emt 0:00:17]} Ne5 {[%emt 0:00:15]} 26. b3 {[%emt 0:00:12]} h5 {[%emt 0:00:43]} 27. Rf1 {[%emt 0:00:07]} Kd7 {[%emt 0:00:15]} 28. Rf8 {[%emt 0:00:09]} Nc6 {[%emt 0:00:21]} 29. Nf4 {[%emt 0:00:27]} Bg4 {[%emt 0:02:07]} 30. h3 {[%emt 0:00:20]} Bd1 {[%emt 0:00:09]} 31. Kf2 {[%emt 0:00:15]} Nd4 {[%emt 0:00:26]} 32. Rf7+ {[%emt 0:00:23]} Kc8 {[%emt 0:00:51]} 33. e5 {[%emt 0:00:12]} g5 {[%emt 0:00:09]} 34. Nd5 {[%emt 0:00:17]} Bxc2 {[%emt 0:01:40]} 35. Bxc2 {[%emt 0:00:10]} Nxc2 {[%emt 0:00:04]} 36. e6 {[%emt 0:00:02]} 1-0